Cogmind - Beta 11 X6 @@@ ROGUE MODE // 2021.08.21 @ 00:30:04 Player: Olga Result: Self-destructed Performance ------------- Evolutions (3) 1500 Regions Visited (10) 2000 Robots Destroyed (24) 120 Value Destroyed (806) 806 Prototype IDs (38) 760 Alien Tech Used (0) 0 Bonus (675) 675 TOTAL SCORE: 5861 Bonus ------- Follower Combat Kills 75 Aligned with FarCom 300 Met Data Miner 300 Cogmind --------- Core Integrity 300/700 Matter 274/300 Energy 99/100 System Corruption 3% Temperature Cool (2) Movement Flying (34) Location -6/Proximity Caves Parts ------- > --- POWER (1) -------- (None) > --- PROPULSION (4) --- VTOL Module Xenon Bombardment Thruster > --- UTILITY (6) ------ Hacking Suite System Shield > --- WEAPON (2) ------- (None) > --- INVENTORY (5) ---- Light Nuclear Core Improved Cooling System Layered Light Armor Plating Supersonic Drone Bay (1/1) Great Axe Peak State ------------ > --- POWER ------------ Light Nuclear Core > --- PROPULSION ------- Xenon Bombardment Thruster Xenon Bombardment Thruster Xenon Bombardment Thruster Xenon Bombardment Thruster > --- UTILITY ---------- Medium Storage Unit Weight Redist. System Layered Light Armor Plating Hacking Suite System Shield Supersonic Drone Bay > --- WEAPON ----------- Makeshift Spear > --- INVENTORY -------- Light Nuclear Core Light Nuclear Core Micro Nuclear Core Cesium-ion Thruster Xenon Bombardment Thruster Improved Cooling System Layered Light Armor Plating Layered Light Armor Plating Great Axe [Rating: 47] Favorites ----------- Power Light Nuclear Core Engine Ion Engine Power Core Light Nuclear Core Propulsion Xenon Bombardment Thruster Leg Improved Titanium Leg Wheel Wheel Flight Unit Xenon Bombardment Thruster Utility Medium Storage Unit Device Weight Redist. System Storage Medium Storage Unit Hackware Hacking Suite Protection Medium Armor Plating Weapon Improved Assault Rifle Energy Gun Small Laser Ballistic Gun Improved Assault Rifle Slashing Weapon Great Axe Piercing Weapon Makeshift Spear Build | -11 -10 -10 -10 -9 -8 -7 -7 -7 -7 -6 ------- Run | Scr Mat Min Exi Min Mat Fac Low Low Dat Pro Slots Evolved 6 | . . . . . 4 2 . . . . Power . | . . . . . . . . . . . Propulsion 2 | . . . . . 2 . . . . . Utility 4 | . . . . . 2 2 . . . . Weapon . | . . . . . . . . . . . Parts Attached 63 | . 11 . 2 . 20 17 4 2 . 7 Power 10 | . 2 . . . 3 3 1 . . 1 Engine 4 | . 2 . . . 2 . . . . . Core 6 | . . . . . 1 3 1 . . 1 Reactor . | . . . . . . . . . . . Propulsion 22 | . 3 . . . 8 6 1 . . 4 Treads . | . . . . . . . . . . . Leg 4 | . . . . . 4 . . . . . Wheel 3 | . 3 . . . . . . . . . Hover . | . . . . . . . . . . . Flight 15 | . . . . . 4 6 1 . . 4 Utility 22 | . 2 . 1 . 8 7 1 1 . 2 Device 7 | . . . . . 1 4 1 1 . . Storage 3 | . 1 . 1 . 1 . . . . . Processor . | . . . . . . . . . . . Hackware 2 | . . . . . 1 1 . . . . Protection 10 | . 1 . . . 5 2 . . . 2 Artifact . | . . . . . . . . . . . Weapon 9 | . 4 . 1 . 1 1 1 1 . . Energy Gun . | . . . . . . . . . . . Energy Cannon . | . . . . . . . . . . . Ballistic Gun 6 | . 4 . 1 . 1 . . . . . Ballistic Cannon . | . . . . . . . . . . . Launcher . | . . . . . . . . . . . Special Weapon . | . . . . . . . . . . . Impact Weapon . | . . . . . . . . . . . Slashing Weapon 2 | . . . . . . 1 . 1 . . Piercing Weapon 1 | . . . . . . . 1 . . . Special Melee Weapon . | . . . . . . . . . . . Unidentified Prototypes 2 | . 1 . . . 1 . . . . . Parts Lost 15 | . . . . . 4 1 1 1 . 8 Power 1 | . . . . . . . . . . 1 Propulsion 7 | . . . . . . 1 1 . . 5 Utility 5 | . . . . . 3 . . . . 2 Weapon 2 | . . . . . 1 . . 1 . . Highest Loss Streak 5 | . . . . . 2 1 1 1 . 5 Average Slot Usage (%) 91 | . 92 100 100 100 92 91 85 84 84 72 Engine 6 | . 14 14 14 14 7 . . . . . Core 3 | . . . . . 1 6 7 7 7 6 Leg 7 | . 12 . . . 26 . . . . . Wheel 7 | . 15 28 28 28 1 . . . . . Flight 14 | . . . . . 6 30 30 30 30 29 Device 5 | . . . . . 1 13 12 7 7 1 Storage 10 | . 14 14 14 14 11 7 7 7 7 6 Hackware 6 | . . . . . . 14 15 15 15 15 Protection 11 | . 7 14 14 14 17 8 7 7 7 8 Energy Gun 1 | . 11 . . . . . . . . . Ballistic Gun 11 | . 16 28 28 28 18 . . . . . Slashing Weapon 2 | . . . . . . 6 . 1 7 1 Naked Turns . | . . . . . . . . . . . Heaviest Build 58 | 13 26 26 38 38 58 27 23 23 23 23 Greatest Support 80 | 20 20 20 20 20 80 33 24 24 24 24 Greatest Overweight (x) 18 | . 1 1 1 1 18 . . . . 1 Average Overweight (x) . | . . 1 1 1 . . . . . . Largest Inventory Capacity 15 | . 10 10 15 15 15 10 10 10 10 10 Average Capacity 11 | . 9 10 12 15 14 10 10 10 10 9 Most Carried 15 | . 10 10 11 12 15 10 10 10 10 10 Average Carried 10 | . 9 10 10 11 13 9 9 9 10 6 Final Capacity 15 | 8 10 10 15 15 10 10 10 10 10 5 Final Carried 12 | 6 10 10 11 12 10 10 10 10 10 5 Class Distribution -------------------- 49% | Mutant 45% | Hacker-Sprinter 3% | Sprinter Dominant Class ---------------- Mutant | -10/Materials Mutant | -10/Mines Mutant | -10/Exiles Mutant | -9/Mines Mutant | -8/Materials Hacker-Sprinter | -7/Factory Hacker-Sprinter | -7/Lower Caves Hacker-Sprinter | -7/Lower Caves Hacker-Sprinter | -7/Data Miner Hacker-Sprinter | -6/Proximity Caves Resources | -11 -10 -10 -10 -9 -8 -7 -7 -7 -7 -6 ----------- Run | Scr Mat Min Exi Min Mat Fac Low Low Dat Pro Matter Collected 1061 | 200 170 . . . 355 157 136 24 . 19 Remotely . | . . . . . . . . . . . Salvage Created 995 | . 425 . . . 501 41 . 28 . . Parts 49 | . 24 . . . 22 2 . 1 . . Haulers Intercepted . | . . . . . . . . . . . Recyclers Shooed . | . . . . . . . . . . . Parts Field Recycled . | . . . . . . . . . . . Retrieved Matter . | . . . . . . . . . . . Parts Self-Destructed 14 | . . . . . . . 9 . . 5 Prevented . | . . . . . . . . . . . Kills | -11 -10 -10 -10 -9 -8 -7 -7 -7 -7 -6 ------- Run | Scr Mat Min Exi Min Mat Fac Low Low Dat Pro Combat Hostiles Destroyed 23 | . 12 . . . 9 1 . 1 . . Melee 2 | . . . . . . 1 . 1 . . Guns 20 | . 11 . . . 9 . . . . . Classes Destroyed 6 | . 2 . . . 3 1 . . . . Worker 1 | . . . . . 1 . . . . . Swarmer 6 | . 5 . . . . . . 1 . . Grunt 13 | . 7 . . . 6 . . . . . Sentry 2 | . . . . . 2 . . . . . Hunter 1 | . . . . . 1 . . . . . Programmer 1 | . . . . . . 1 . . . . Best Kill Streak 4 | . 4 . . . 4 1 . 1 . . Combat Bots Only 4 | . 4 . . . 4 1 . 1 . . Max Kills in Single Turn 2 | . 1 . . . 2 1 . 1 . . Gunslinging . | . . . . . . . . . . . Exploded . | . . . . . . . . . . . Melee 1 | . . . . . . 1 . 1 . . Uniques/NPCs Destroyed . | . . . . . . . . . . . Combat | -11 -10 -10 -10 -9 -8 -7 -7 -7 -7 -6 -------- Run | Scr Mat Min Exi Min Mat Fac Low Low Dat Pro Damage Taken 3132 | . 471 . . . 1205 493 286 69 . 608 Core 647 | . 155 . . . 92 135 47 31 . 187 Absorbed by Shields 20 | . . . . . . 20 . . . . Core Remaining (%) 73 | 100 . . . 38 83 . . . . . Volleys Fired 73 | . 31 . . . 42 . . . . . Largest 2 | . 2 . . . 2 . . . . . Hottest 90 | . 90 . . . 46 . . . . . Shots Fired 146 | . 62 . . . 84 . . . . . Gun 146 | . 62 . . . 84 . . . . . Cannon . | . . . . . . . . . . . Launcher . | . . . . . . . . . . . Special . | . . . . . . . . . . . Kinetic 118 | . 34 . . . 84 . . . . . Thermal 28 | . 28 . . . . . . . . . Explosive . | . . . . . . . . . . . Electromagnetic . | . . . . . . . . . . . Robot Hit Streak 18 | . 8 . . . 18 . . . . . Robot Miss Streak 4 | . 4 . . . 2 . . . . . Penetration Max . | . . . . . . . . . . . Secondary Targets 4 | . 1 . . . 3 . . . . . Max Gunslinging Chain 1 | . 1 . . . 1 . . . . . Shots Hit Robots 117 | . 40 . . . 69 6 . 2 . . Core Hits 42 | . 15 . . . 25 1 . 1 . . Critical Kills . | . . . . . . . . . . . Critical Parts Destroyed 1 | . . . . . 1 . . . . . Critical Strikes 1 | . . . . . 1 . . . . . Destroy 1 | . . . . . 1 . . . . . Melee Attacks 14 | . . . . . . 8 . 5 . 1 Impact . | . . . . . . . . . . . Slashing 13 | . . . . . . 8 . 4 . 1 Piercing 1 | . . . . . . . . 1 . . Sneak Attacks . | . . . . . . . . . . . Combat Hostiles . | . . . . . . . . . . . Follow-up Attacks . | . . . . . . . . . . . Damage Inflicted 1881 | . 510 . . . 1040 257 . 74 . . Guns 1537 | . 510 . . . 1027 . . . . . Cannons . | . . . . . . . . . . . Explosions . | . . . . . . . . . . . Melee 331 | . . . . . . 257 . 74 . . Ramming 13 | . . . . . 13 . . . . . Kinetic 1302 | . 275 . . . 1027 . . . . . Thermal 235 | . 235 . . . . . . . . . Explosive . | . . . . . . . . . . . Electromagnetic . | . . . . . . . . . . . Impact . | . . . . . . . . . . . Slashing 331 | . . . . . . 257 . 74 . . Piercing . | . . . . . . . . . . . Highest Corruption 3 | . . . . . . 3 3 3 3 3 Average Corruption 2 | . . . . . . 2 3 3 3 3 Corruption Purged . | . . . . . . . . . . . Effects 19 | . . . . . . 9 6 . . 4 Message Errors 10 | . . . . . . 5 2 . . 3 Matter Fused 3 | . . . . . . 1 1 . . 1 Heat Flow Errors 1 | . . . . . . 1 . . . . Energy Discharges 4 | . . . . . . 2 2 . . . Data Loss (minor) 1 | . . . . . . . 1 . . . Overload Shots . | . . . . . . . . . . . Overflow Damage 27 | . . . . . . 27 . . . . Projectiles . | . . . . . . . . . . . Explosions . | . . . . . . . . . . . Melee 27 | . . . . . . 27 . . . . Knockbacks . | . . . . . . . . . . . Impact . | . . . . . . . . . . . Kinetic . | . . . . . . . . . . . Secondary . | . . . . . . . . . . . Self-Inflicted Damage . | . . . . . . . . . . . Shots . | . . . . . . . . . . . Rammed . | . . . . . . . . . . . Targets Rammed 4 | . . . . . 4 . . . . . Kicked 4 | . . . . . 4 . . . . . Crushed . | . . . . . . . . . . . Highest Temperature 458 | . 300 . . . 458 243 18 2 2 209 Average Temperature 76 | . 90 . . . 44 77 6 2 2 122 Received Heat Transfer 777 | . 132 . . . 414 93 75 . . 63 Effects 2 | . . . . . 2 . . . . . Interference 2 | . . . . . 2 . . . . . Siege Activations . | . . . . . . . . . . . Robots Corrupted . | . . . . . . . . . . . Combat Hostiles . | . . . . . . . . . . . Parts Fried . | . . . . . . . . . . . Impact Corruptions . | . . . . . . . . . . . Robots Melted 1 | . 1 . . . . . . . . . Combat Hostiles 1 | . 1 . . . . . . . . . Parts Melted 3 | . 3 . . . . . . . . . Heat Transferred 620 | . 620 . . . . . . . . . Parts Sabotaged . | . . . . . . . . . . . Parts Stolen . | . . . . . . . . . . . Parts Stripped . | . . . . . . . . . . . Power Chain Reactions . | . . . . . . . . . . . Missiles Intercepted . | . . . . . . . . . . . Alert | -11 -10 -10 -10 -9 -8 -7 -7 -7 -7 -6 ------- Run | Scr Mat Min Exi Min Mat Fac Low Low Dat Pro Peak Influence 453 | . 376 68 . . 336 453 . . . . Initial 147 | . . 68 . . . 147 . . . . Average 189 | . 152 68 . . 187 236 . . . . Maximum Alert Level 2 | . 1 . . . 1 2 . . . . Low Security (%) 50 | . 72 100 . 100 53 28 . . . . Level 1 47 | . 27 . . . 46 65 . . . . Level 2 2 | . . . . . . 6 . . . . Level 3 . | . . . . . . . . . . . Level 4 . | . . . . . . . . . . . Level 5 . | . . . . . . . . . . . High Security . | . . . . . . . . . . . Max Security . | . . . . . . . . . . . Squads Dispatched 14 | . 5 . . . 4 5 . . . . Investigation 3 | . 1 . . . 2 . . . . . Extermination 3 | . . . . . . 3 . . . . Reinforcement 8 | . 4 . . . 2 2 . . . . Assault . | . . . . . . . . . . . Garrison . | . . . . . . . . . . . Intercept . | . . . . . . . . . . . Construction Impeded . | . . . . . . . . . . . Haulers Reinforced . | . . . . . . . . . . . Active Scanning Responses . | . . . . . . . . . . . Cargo Convoy Interrupts . | . . . . . . . . . . . Stealth | -11 -10 -10 -10 -9 -8 -7 -7 -7 -7 -6 --------- Run | Scr Mat Min Exi Min Mat Fac Low Low Dat Pro Distress Signals 6 | . 2 . . . 3 1 . . . . Communications Jammed . | . . . . . . . . . . . Distress Signals . | . . . . . . . . . . . Times Spotted 116 | . 23 . . . 34 23 12 5 . 19 Peak Tracking Total 9 | . 6 . . . 8 9 6 3 . 7 Tactical Retreats 22 | . 4 . . . 1 6 3 2 . 6 Traps | -11 -10 -10 -10 -9 -8 -7 -7 -7 -7 -6 ------- Run | Scr Mat Min Exi Min Mat Fac Low Low Dat Pro Traps Triggered 5 | . 1 . . . 1 3 . . . . Indirectly . | . . . . . . . . . . . Trap Hack Attempts . | . . . . . . . . . . . Triggered . | . . . . . . . . . . . Disarmed . | . . . . . . . . . . . Reprogrammed . | . . . . . . . . . . . Reused . | . . . . . . . . . . . Traps Extracted . | . . . . . . . . . . . Installed 2 | . . . . . . . 2 . . . Triggered . | . . . . . . . . . . . Machines | -11 -10 -10 -10 -9 -8 -7 -7 -7 -7 -6 ---------- Run | Scr Mat Min Exi Min Mat Fac Low Low Dat Pro Machines Disabled . | . . . . . . . . . . . Max in Single Turn . | . . . . . . . . . . . Machines Sabotaged . | . . . . . . . . . . . Garrisons Compromised . | . . . . . . . . . . . Overloaded Fab Kills . | . . . . . . . . . . . Fab Network Shutdowns 1 | . . . . . . 1 . . . . Hacking | -11 -10 -10 -10 -9 -8 -7 -7 -7 -7 -6 --------- Run | Scr Mat Min Exi Min Mat Fac Low Low Dat Pro Machines Accessed 25 | . 1 . 1 . 2 16 . 1 4 . Terminals 9 | . 1 . . . 1 7 . . . . Fabricators 3 | . . . . . . 3 . . . . Repair Stations 4 | . . . . . . 4 . . . . Recycling Units 1 | . . . . . 1 . . . . . Scanalyzers 1 | . . . . . . 1 . . . . Garrison Access 1 | . . . . . . 1 . . . . Total Hacks 84 | . 2 . 1 . 4 45 . 3 29 . Successful 59 | . 1 . 1 . 1 24 . 3 29 . Failed 25 | . 1 . . . 3 21 . . . . Catastrophic 3 | . . . . . 1 2 . . . . Database Lockouts . | . . . . . . . . . . . Manual 23 | . 2 . 1 . 4 16 . . . . Terminals 25 | . 2 . . . 3 20 . . . . Fabricators 8 | . . . . . . 8 . . . . Repair Stations 11 | . . . . . . 11 . . . . Recycling Units 1 | . . . . . 1 . . . . . Scanalyzers 4 | . . . . . . 4 . . . . Garrison Access 2 | . . . . . . 2 . . . . Terminal Hacks 40 | . 1 . 1 . . 6 . 3 29 . Record 16 | . . . . . . 2 . 3 11 . Part Schematic 8 | . . . . . . . . . 8 . Robot Schematic 7 | . . . . . . . . . 7 . Prototype ID Bank 3 | . . . . . . . . . 3 . Branch Access Points 1 | . . . . . . 1 . . . . Alert Level 1 | . . . . . . 1 . . . . Unreport Threat 2 | . . . . . . 2 . . . . Zone Layout 1 | . 1 . . . . . . . . . EX-Prototype ID Bank 1 | . . . 1 . . . . . . . Fabricator Hacks 6 | . . . . . . 6 . . . . Load Schematic 3 | . . . . . . 3 . . . . Build 3 | . . . . . . 3 . . . . Repair Station Hacks 7 | . . . . . . 7 . . . . Scan Component 4 | . . . . . . 4 . . . . Repair 3 | . . . . . . 3 . . . . Recycling Unit Hacks . | . . . . . . . . . . . Scanalyzer 2 | . . . . . . 2 . . . . Insert Component 1 | . . . . . . 1 . . . . Analyze 1 | . . . . . . 1 . . . . Garrison Access Hacks . | . . . . . . . . . . . Unauthorized Hacks 4 | . . . . . 1 3 . . . . Terminals 2 | . . . . . . 2 . . . . Assimilate 1 | . . . . . . 1 . . . . Botnet 1 | . . . . . . 1 . . . . Fabricators 1 | . . . . . . 1 . . . . Report 1 | . . . . . . 1 . . . . Repair Stations . | . . . . . . . . . . . Recycling Units 1 | . . . . . 1 . . . . . Tunnel 1 | . . . . . 1 . . . . . Scanalyzers . | . . . . . . . . . . . Garrison Access . | . . . . . . . . . . . Data Cores Recovered . | . . . . . . . . . . . Used . | . . . . . . . . . . . Hacking Detections 15 | . 1 . . . 1 13 . . . . Full Trace Events . | . . . . . . . . . . . Feedback Events . | . . . . . . . . . . . Feedback Blocked . | . . . . . . . . . . . Robot Schematics Acquired 7 | . . . . . . . . . 7 . Robots Built . | . . . . . . . . . . . Matter . | . . . . . . . . . . . Time . | . . . . . . . . . . . Total Robot Build Rating . | . . . . . . . . . . . Part Schematics Acquired 9 | . . . . . . 1 . . 8 . Parts Built 6 | . . . . . . 6 . . . . Matter 504 | . . . . . . 504 . . . . Time 126 | . . . . . . 126 . . . . Total Part Build Rating 24 | . . . . . . 24 . . . . Parts Repaired 3 | . . . . . . 3 . . . . Time 101 | . . . . . . 101 . . . . Parts Recycled . | . . . . . . . . . . . Recycled Matter . | . . . . . . . . . . . Retrieved Matter . | . . . . . . . . . . . Retrieved Components . | . . . . . . . . . . . Parts Scanalyzed 1 | . . . . . . 1 . . . . Part Schematics Acquired 1 | . . . . . . 1 . . . . Parts Damaged . | . . . . . . . . . . . Bothacking | -11 -10 -10 -10 -9 -8 -7 -7 -7 -7 -6 ------------ Run | Scr Mat Min Exi Min Mat Fac Low Low Dat Pro Used RIF Installer . | . . . . . . . . . . . Robots Hacked . | . . . . . . . . . . . Non-combat . | . . . . . . . . . . . Combat . | . . . . . . . . . . . Robot Hacks Applied . | . . . . . . . . . . . Relay Couplers Released . | . . . . . . . . . . . Robots Rewired . | . . . . . . . . . . . Allies Hacked . | . . . . . . . . . . . Hacks Repelled . | . . . . . . . . . . . Allies | -11 -10 -10 -10 -9 -8 -7 -7 -7 -7 -6 -------- Run | Scr Mat Min Exi Min Mat Fac Low Low Dat Pro Total Allies 4 | . . . . 2 . 1 . . . 1 Largest Group 2 | . . . . 2 2 1 . . . 1 Highest-Rated Group 95 | . . . . 48 48 26 . . . 95 Highest-Rated Ally 95 | . . . . 31 31 26 . . . 95 Total Orders 2 | . . . . . . . 1 1 . . EXPLORE 2 | . . . . . . . 1 1 . . Ally Attacks 36 | . . . . . 15 . . . . 21 Total Damage 655 | . . . . . 188 . . . . 467 Kills 11 | . . . . . 7 . . . . 4 Allies Corrupted . | . . . . . . . . . . . Allies Melted . | . . . . . . . . . . . Intel | -11 -10 -10 -10 -9 -8 -7 -7 -7 -7 -6 ------- Run | Scr Mat Min Exi Min Mat Fac Low Low Dat Pro Robot Analysis Total . | . . . . . . . . . . . Derelict Logs Recovered 6 | . . 1 . . . . 2 1 . 2 Drone Launches 2 | . . . . . . . 1 1 . . Drone Recoveries 2 | . . . . . . . 1 1 . . Exploration | -11 -10 -10 -10 -9 -8 -7 -7 -7 -7 -6 ------------- Run | Scr Mat Min Exi Min Mat Fac Low Low Dat Pro Turns Passed 2954 | . 440 31 415 85 639 794 220 114 25 191 Spaces Moved 4695 | 1 282 33 379 69 489 1785 681 301 80 595 Core 1 | . . . . . 1 . . . . . Treads . | . . . . . . . . . . . Legs 256 | 1 98 . . . 157 . . . . . Wheels 714 | . 184 33 379 69 49 . . . . . Hover . | . . . . . . . . . . . Flight 3724 | . . . . . 282 1785 681 301 80 595 Fastest Speed 26 | 120 80 95 95 95 26 26 31 31 31 29 Average Speed 45 | 120 103 95 95 95 69 29 31 31 31 29 Slowest Speed 950 | 120 200 95 95 95 950 31 31 31 31 112 Overloaded Moves . | . . . . . . . . . . . Propulsion Burnouts . | . . . . . . . . . . . Robots Hopped 47 | . . . . . 12 30 2 . . 3 Cave-ins Triggered . | . . . . . . . . . . . Exploration Rate (%) 45 | 1 33 10 61 18 45 54 78 67 68 68 Regions Visited 10 Branch Regions 7 Pre-discovered Areas 4 | . . . . . 1 . . 1 1 1 Known Exits Taken 1 | . . . . . . 1 . . . . Unknown Exits Taken 9 | 1 1 1 1 1 1 . 1 1 1 . Scrap Searched 7 | . . . . . . . 3 2 . 2 Spaces Dug 1 | . . . . . . 1 . . . . Terrain Destroyed 1 | . . . . . . 1 . . . . Melee 1 | . . . . . . 1 . . . . Projectile . | . . . . . . . . . . . AOE . | . . . . . . . . . . . Terrain Rammed . | . . . . . . . . . . . Walls Destroyed . | . . . . . . . . . . . Machines Disabled . | . . . . . . . . . . . Actions | -11 -10 -10 -10 -9 -8 -7 -7 -7 -7 -6 --------- Run | Scr Mat Min Exi Min Mat Fac Low Low Dat Pro Total 5331 | . 376 32 434 88 698 2019 686 313 79 606 Wait 378 | . 25 . 50 19 111 169 . 4 . . Move 4597 | . 281 32 378 68 465 1728 676 300 79 590 Hop 41 | . . . . . 11 26 2 . . 2 Pick Up 56 | . 14 . 2 1 21 16 1 1 . . Fast Attach 14 | . 4 . . . 7 3 . . . . Attach 29 | . 4 . . . 9 6 2 2 . 6 Detach 8 | . . . . . 1 3 1 1 . 2 Swap 20 | . 3 . 2 . 4 8 2 . . 1 Drop 62 | . 14 . 2 . 23 19 . . . 4 Fire 73 | . 31 . . . 42 . . . . . Melee 14 | . . . . . . 8 . 5 . 1 Ram . | . . . . . . . . . . . Kick 4 | . . . . . 4 . . . . . Crush . | . . . . . . . . . . . Escape Stasis 33 | . . . . . . 33 . . . . Rewire . | . . . . . . . . . . . Trap 2 | . . . . . . . 2 . . . Miscellaneous . | . . . . . . . . . . . Route ------- -11/Scrapyard -10/Materials (discovered 2 exits: [*Mat] / [*Min]) -10/Mines -10/Exiles -9/Mines -8/Materials -7/Factory (discovered 3 exits: [*Fac] / *Low x2) -7/Lower Caves -7/Lower Caves (discovered 2 exits: [*Fac] / *Dat) -7/Data Miner -6/Proximity Caves History --------- Turn | Location | Event 1 | -11/Scrapyard | Discovered new exit (range 0) 1 | -11/Scrapyard | Entered Materials 108 | -10/Materials | Discovered new exit (range 14) 277 | -10/Materials | Core integrity fell below 50% 314 | -10/Materials | Build established: Mutant 427 | -10/Materials | Discovered new exit (range 15) 441 | -10/Materials | Entered Mines 467 | -10/Mines | Deemed a non-threat by the Exiles lab entrance 467 | -10/Mines | Discovered new exit (range 5) 468 | -10/Mines | Met a Derelict bent on vengeance 472 | -10/Mines | Entered Exiles 496 | -10/Exiles | Met 8R-AWN 512 | -10/Exiles | Met EX-HEX 540 | -10/Exiles | Met EX-BIN 553 | -10/Exiles | Aligned with FarCom system 554 | -10/Exiles | Given EX-Vault access code 577 | -10/Exiles | Opened EX-Vault 584 | -10/Exiles | Found Supersonic Drone Bay 603 | -10/Exiles | Warned to stay clear of 0b10 Research branches 630 | -10/Exiles | Met EX-DEC 877 | -10/Exiles | Discovered new exit (range 14) 887 | -10/Exiles | Left Exiles lab with Supersonic Drone Bay 887 | -10/Exiles | Entered Mines 930 | -9/Mines | Discovered new exit (range 16) 943 | -9/Mines | Received a Rocket Launcher from a helpful Derelict 972 | -9/Mines | Entered Materials 972 | -8/Materials | Accompanied by 2 allies 972 | -8/Materials | Evolved 4 slots: Propulsion x2, Utility x2 977 | -8/Materials | Led the pair of lost Derelicts to an unsafe place 1606 | -8/Materials | Discovered new exit (range 15) 1611 | -8/Materials | Entered Factory 1611 | -7/Factory | Evolved 2 slots: Utility x2 1791 | -7/Factory | Fabricated Xenon Bombardment Thruster (x2) 1800 | -7/Factory | Fabricated Xenon Bombardment Thruster (x2) 1805 | -7/Factory | Fabricated Xenon Bombardment Thruster? 1857 | -7/Factory | Repaired Lgt. Nuclear Core 1879 | -7/Factory | Build established: Hacker-Sprinter 1953 | -7/Factory | Repaired Xenon Bombardment Thruster? 2007 | -7/Factory | Local fabrication network quarantined 2125 | -7/Factory | Repaired Lgt. Nuclear Core 2286 | -7/Factory | Identified exit to Lower Caves 2379 | -7/Factory | Discovered new exit (range 4) 2405 | -7/Factory | Entered Lower Caves 2409 | -7/Lower Caves | Learned Factory terminal intel 2433 | -7/Lower Caves | Encountered a Warlord checkpoint 2455 | -7/Lower Caves | Learned Factory trap positions 2456 | -7/Lower Caves | Attracted the attention of an 0b10 checkpoint 2620 | -7/Lower Caves | Discovered new exit (range 15) 2625 | -7/Lower Caves | Entered another Lower Caves area 2631 | -7/Lower Caves | Discovered new exit (range 12) 2646 | -7/Lower Caves | Encountered a Warlord checkpoint 2735 | -7/Lower Caves | Discovered new exit (range 15) 2739 | -7/Lower Caves | Entered Data Miner 2739 | -7/Data Miner | Discovered new exit (range 6) 2745 | -7/Data Miner | Met Data Miner 2751 | -7/Data Miner | Learned location of Section 7 (-2) 2751 | -7/Data Miner | Acquired the access code to Warlord's prototype stash 2756 | -7/Data Miner | Received God Mode back door access code from Data Miner 2764 | -7/Data Miner | Entered Proximity Caves 2795 | -6/Proximity Caves | Learned location of 1 exit from Lower Caves 2826 | -6/Proximity Caves | Attracted the attention of an 0b10 checkpoint 2838 | -6/Proximity Caves | Escorted by Enhanced Grunt 2848 | -6/Proximity Caves | Lost 5 parts (1p2n2u) 2875 | -6/Proximity Caves | Spotted B-75 Beast 2913 | -6/Proximity Caves | Learned location of Zion (-6) 2917 | -6/Proximity Caves | Core integrity fell below 50% 2955 | -6/Proximity Caves | Self-destructed Last Messages --------------- 02828_ Searching scrap... 02828_ Found Imp. Reclamation Unit. 02828_ Found Remote Datajack. 02828_ Found Wheel. 02828_ Found 18 Matter. 02829_ Acquired 18 matter. 02837_ DK6CTBSW2GE